[Event "Early-Titled-Tuesday-Blitz-April-23-2024"]
[Site "Chess.com"]
[Date "2024.04.23"]
[Round "10"]
[White "ChEsper99"]
[Black "InitiatingASC"]
[Result "0-1"]
[WhiteElo "2246"]
[BlackElo "2342"]
[TimeControl "180+1"]
[EndTime "10:01:21 PDT"]
[Termination "InitiatingASC won on time"]

1. Nf3 {[%clk 0:02:59.2]} 1... Nc6 {[%clk 0:02:59.3]} 2. d4 {[%clk 0:02:58.8]}
2... Nf6 {[%clk 0:02:58.4]} 3. g3 {[%clk 0:02:55.3]} 3... e6 {[%clk 0:02:56.7]}
4. Bg2 {[%clk 0:02:55.3]} 4... Be7 {[%clk 0:02:53.3]} 5. O-O {[%clk 0:02:55.8]}
5... O-O {[%clk 0:02:53.2]} 6. c4 {[%clk 0:02:55.8]} 6... d6 {[%clk 0:02:52.4]}
7. Nc3 {[%clk 0:02:55.1]} 7... Re8 {[%clk 0:02:50.6]} 8. e4 {[%clk 0:02:55]}
8... e5 {[%clk 0:02:45.4]} 9. d5 {[%clk 0:02:48.1]} 9... Nb8 {[%clk 0:02:42.2]}
10. h3 {[%clk 0:02:42.8]} 10... a5 {[%clk 0:02:41.7]} 11. Be3 {[%clk 0:02:40.4]}
11... Nbd7 {[%clk 0:02:41.7]} 12. a3 {[%clk 0:02:36.6]} 12... b6 {[%clk
0:02:35.6]} 13. b4 {[%clk 0:02:36.5]} 13... axb4 {[%clk 0:02:29.4]} 14. axb4
{[%clk 0:02:37.4]} 14... Ba6 {[%clk 0:02:24.3]} 15. Qb3 {[%clk 0:02:25.1]} 15...
Bf8 {[%clk 0:02:15.9]} 16. Ra2 {[%clk 0:02:04.8]} 16... Qe7 {[%clk 0:02:06.6]}
17. Rfa1 {[%clk 0:02:04.1]} 17... Bb7 {[%clk 0:02:07]} 18. Nb5 {[%clk
0:02:03.5]} 18... Nxe4 {[%clk 0:01:53.7]} 19. Nxc7 {[%clk 0:02:02]} 19... Rxa2
{[%clk 0:01:53.4]} 20. Rxa2 {[%clk 0:02:01.3]} 20... Rc8 {[%clk 0:01:48.3]} 21.
Nb5 {[%clk 0:02:00.2]} 21... f5 {[%clk 0:01:41.6]} 22. Ra7 {[%clk 0:01:57.2]}
22... Ndf6 {[%clk 0:01:37.4]} 23. Bxb6 {[%clk 0:01:53.2]} 23... Ra8 {[%clk
0:01:19]} 24. Qa4 {[%clk 0:01:48.1]} 24... Rxa7 {[%clk 0:01:10.2]} 25. Qxa7
{[%clk 0:01:48.3]} 25... Bc8 {[%clk 0:00:49.1]} 26. Bc7 {[%clk 0:01:20.1]} 26...
Bd7 {[%clk 0:00:45.9]} 27. Na3 {[%clk 0:00:52.7]} 27... Nc3 {[%clk 0:00:33.8]}
28. b5 {[%clk 0:00:50]} 28... e4 {[%clk 0:00:24.2]} 29. Ne1 {[%clk 0:00:27.2]}
29... Nfxd5 {[%clk 0:00:20.8]} 30. cxd5 {[%clk 0:00:23.1]} 30... Bxb5 {[%clk
0:00:21]} 31. Nxb5 {[%clk 0:00:20.4]} 31... Nxb5 {[%clk 0:00:20.8]} 32. Qb7
{[%clk 0:00:09.6]} 32... Nxc7 {[%clk 0:00:20.8]} 33. Nc2 {[%clk 0:00:09.1]}
33... Ne8 {[%clk 0:00:20.9]} 34. Qb5 {[%clk 0:00:04.2]} 34... Nf6 {[%clk
0:00:19.7]} 35. Nd4 {[%clk 0:00:04.3]} 35... Qe5 {[%clk 0:00:19.8]} 36. Qc4
{[%clk 0:00:03.7]} 36... g6 {[%clk 0:00:17.2]} 37. Nb5 {[%clk 0:00:02]} 37...
Qxd5 {[%clk 0:00:15.8]} 38. Qxd5+ {[%clk 0:00:01.3]} 38... Nxd5 {[%clk
0:00:16.7]} 39. Bf1 {[%clk 0:00:01.7]} 39... Kg7 {[%clk 0:00:16.4]} 40. Bc4
{[%clk 0:00:01.1]} 40... Nf6 {[%clk 0:00:15.5]} 41. Nc3 {[%clk 0:00:01.2]} 41...
Nd7 {[%clk 0:00:14.6]} 42. Kf1 {[%clk 0:00:01.8]} 42... Ne5 {[%clk 0:00:14.6]}
43. Bd5 {[%clk 0:00:02]} 43... Nd3 {[%clk 0:00:14.4]} 44. h4 {[%clk 0:00:01.8]}
44... Be7 {[%clk 0:00:14.7]} 45. Ke2 {[%clk 0:00:02.3]} 45... Bf6 {[%clk
0:00:15.1]} 46. Nb5 {[%clk 0:00:02.1]} 46... Be5 {[%clk 0:00:15.1]} 47. Nc7
{[%clk 0:00:02.4]} 47... Kf8 {[%clk 0:00:12.1]} 48. Ne6+ {[%clk 0:00:03.3]}
48... Ke7 {[%clk 0:00:12]} 49. Ng5 {[%clk 0:00:04]} 49... h6 {[%clk 0:00:11.6]}
50. Nh3 {[%clk 0:00:04.6]} 50... Bd4 {[%clk 0:00:11]} 51. Ng1 {[%clk 0:00:03.9]}
51... Bxf2 {[%clk 0:00:10.7]} 52. Nh3 {[%clk 0:00:03]} 52... Bxg3 {[%clk
0:00:11.1]} 0-1

[Event "Early-Titled-Tuesday-Blitz-April-23-2024"]
[Site "Chess.com"]
[Date "2024.04.23"]
[Round "10"]
[White "Sam_ChessMood"]
[Black "KogotBobra17"]
[Result "1-0"]
[WhiteElo "2985"]
[BlackElo "2784"]
[TimeControl "180+1"]
[EndTime "10:01:23 PDT"]
[Termination "Sam_ChessMood won by checkmate"]

1. d4 {[%clk 0:02:59.5]} 1... d5 {[%clk 0:02:57.7]} 2. c4 {[%clk 0:02:59.6]}
2... e6 {[%clk 0:02:58.1]} 3. Nf3 {[%clk 0:02:59.2]} 3... Nf6 {[%clk 0:02:58.7]}
4. Nc3 {[%clk 0:02:59.6]} 4... c6 {[%clk 0:02:58.5]} 5. e3 {[%clk 0:02:59.1]}
5... Nbd7 {[%clk 0:02:58]} 6. Qc2 {[%clk 0:02:59.3]} 6... Bd6 {[%clk 0:02:57.4]}
7. g4 {[%clk 0:02:59.3]} 7... Nxg4 {[%clk 0:02:56.9]} 8. Rg1 {[%clk 0:02:59.2]}
8... Nxh2 {[%clk 0:02:57.5]} 9. Nxh2 {[%clk 0:02:52.2]} 9... Bxh2 {[%clk
0:02:58.4]} 10. Rxg7 {[%clk 0:02:52.4]} 10... Nf8 {[%clk 0:02:59.1]} 11. Rg2
{[%clk 0:02:31.4]} 11... Bd6 {[%clk 0:02:59]} 12. Bd2 {[%clk 0:02:25.7]} 12...
Ng6 {[%clk 0:02:55.1]} 13. O-O-O {[%clk 0:02:25.6]} 13... Bd7 {[%clk 0:01:52.1]}
14. Kb1 {[%clk 0:02:22.4]} 14... Qc7 {[%clk 0:01:43]} 15. Rc1 {[%clk 0:02:18.8]}
15... dxc4 {[%clk 0:01:21.7]} 16. Ne4 {[%clk 0:02:08.4]} 16... O-O-O {[%clk
0:01:20]} 17. Bxc4 {[%clk 0:01:45.9]} 17... Kb8 {[%clk 0:01:18.7]} 18. f4 {[%clk
0:01:38.6]} 18... Bc8 {[%clk 0:01:09.9]} 19. a3 {[%clk 0:01:32.2]} 19... Be7
{[%clk 0:00:55.4]} 20. Rh1 {[%clk 0:01:28.5]} 20... h5 {[%clk 0:00:50]} 21. Ng5
{[%clk 0:01:27.8]} 21... Bxg5 {[%clk 0:00:40.6]} 22. Rxg5 {[%clk 0:01:28.7]}
22... h4 {[%clk 0:00:41.4]} 23. Bd3 {[%clk 0:01:28.8]} 23... Ne7 {[%clk
0:00:37.9]} 24. Be4 {[%clk 0:01:21.9]} 24... Nd5 {[%clk 0:00:32.7]} 25. Bf3
{[%clk 0:01:11.7]} 25... f6 {[%clk 0:00:25.8]} 26. Rg2 {[%clk 0:01:07.5]} 26...
e5 {[%clk 0:00:23.6]} 27. dxe5 {[%clk 0:00:54.7]} 27... fxe5 {[%clk 0:00:24.5]}
28. fxe5 {[%clk 0:00:46.9]} 28... Qxe5 {[%clk 0:00:24.5]} 29. e4 {[%clk
0:00:47.4]} 29... Nf6 {[%clk 0:00:12.1]} 30. Rg5 {[%clk 0:00:43.9]} 30... Qe7
{[%clk 0:00:10.9]} 31. Bf4+ {[%clk 0:00:38.5]} 31... Ka8 {[%clk 0:00:10.7]} 32.
Ka1 {[%clk 0:00:35.7]} 32... h3 {[%clk 0:00:07.8]} 33. Qa4 {[%clk 0:00:24.9]}
33... Nd7 {[%clk 0:00:07.1]} 34. Ra5 {[%clk 0:00:22.5]} 34... a6 {[%clk
0:00:06.6]} 35. Be2 {[%clk 0:00:13.3]} 35... Nc5 {[%clk 0:00:04.2]} 36. Qb4
{[%clk 0:00:13.7]} 36... Qxe4 {[%clk 0:00:04.5]} 37. Qxe4 {[%clk 0:00:05.7]}
37... Nxe4 {[%clk 0:00:05.4]} 38. Re5 {[%clk 0:00:04.9]} 38... Nf2 {[%clk
0:00:04.1]} 39. Rh2 {[%clk 0:00:05.4]} 39... Ng4 {[%clk 0:00:04.8]} 40. Bxg4
{[%clk 0:00:05.5]} 40... Bxg4 {[%clk 0:00:05.7]} 41. b4 {[%clk 0:00:05.1]} 41...
Rd1+ {[%clk 0:00:05.3]} 42. Kb2 {[%clk 0:00:05]} 42... Rg1 {[%clk 0:00:06]} 43.
Rg5 {[%clk 0:00:04.7]} 43... Rh4 {[%clk 0:00:03.8]} 44. Rg8+ {[%clk 0:00:03.8]}
44... Bc8 {[%clk 0:00:03.1]} 45. Rxc8+ {[%clk 0:00:02.7]} 45... Ka7 {[%clk
0:00:03.8]} 46. Be3+ {[%clk 0:00:03.3]} 46... b6 {[%clk 0:00:03.8]} 47. Bxg1
{[%clk 0:00:03.9]} 47... Rg4 {[%clk 0:00:04.7]} 48. Rxh3 {[%clk 0:00:03.8]}
48... Rxg1 {[%clk 0:00:05.1]} 49. Rh7+ {[%clk 0:00:03.7]} 49... Rg7 {[%clk
0:00:01]} 50. Rxg7# {[%clk 0:00:03.9]} 1-0

[Event "Early-Titled-Tuesday-Blitz-April-23-2024"]
[Site "Chess.com"]
[Date "2024.04.23"]
[Round "10"]
[White "alpope"]
[Black "dontcatchmeifyoucant"]
[Result "1-0"]
[WhiteElo "2521"]
[BlackElo "2391"]
[TimeControl "180+1"]
[EndTime "10:01:23 PDT"]
[Termination "alpope won by resignation"]

1. e4 {[%clk 0:03:00.9]} 1... c6 {[%clk 0:02:57.9]} 2. d4 {[%clk 0:02:56.4]}
2... d5 {[%clk 0:02:57.9]} 3. e5 {[%clk 0:02:56.2]} 3... c5 {[%clk 0:02:57.6]}
4. dxc5 {[%clk 0:02:52.9]} 4... e6 {[%clk 0:02:57.9]} 5. Nf3 {[%clk 0:02:34.2]}
5... Bxc5 {[%clk 0:02:57.6]} 6. Bd3 {[%clk 0:02:34.6]} 6... Ne7 {[%clk
0:02:53.7]} 7. Bf4 {[%clk 0:02:34.6]} 7... Nbc6 {[%clk 0:02:45.7]} 8. O-O {[%clk
0:02:31.4]} 8... Ng6 {[%clk 0:02:36.8]} 9. Bg3 {[%clk 0:02:31]} 9... O-O {[%clk
0:02:37.3]} 10. Nbd2 {[%clk 0:02:30.9]} 10... a6 {[%clk 0:02:21.4]} 11. Nb3
{[%clk 0:02:27.7]} 11... Bb6 {[%clk 0:02:20.9]} 12. Qe2 {[%clk 0:02:27.6]} 12...
Bc7 {[%clk 0:02:20.2]} 13. Nbd4 {[%clk 0:02:17.6]} 13... Qe7 {[%clk 0:02:16.5]}
14. c3 {[%clk 0:02:11.9]} 14... Bd7 {[%clk 0:02:11.7]} 15. Rae1 {[%clk 0:02:09]}
15... Rac8 {[%clk 0:02:11.2]} 16. h4 {[%clk 0:01:56.7]} 16... Nxd4 {[%clk
0:01:54.5]} 17. cxd4 {[%clk 0:01:54.7]} 17... Rfe8 {[%clk 0:01:47.6]} 18. h5
{[%clk 0:01:51.6]} 18... Nf8 {[%clk 0:01:48.1]} 19. a3 {[%clk 0:01:50.3]} 19...
f5 {[%clk 0:01:37.7]} 20. Bh4 {[%clk 0:01:30.1]} 20... Qf7 {[%clk 0:00:56.8]}
21. Ng5 {[%clk 0:01:29.6]} 21... Qe7 {[%clk 0:00:57]} 22. g3 {[%clk 0:01:30.2]}
22... Bb6 {[%clk 0:00:45.9]} 23. Nxh7 {[%clk 0:01:24.8]} 23... Qf7 {[%clk
0:00:45.8]} 24. Ng5 {[%clk 0:01:25.2]} 24... Qe7 {[%clk 0:00:46.2]} 25. Ne4
{[%clk 0:01:22.6]} 25... dxe4 {[%clk 0:00:36.9]} 26. Bxe7 {[%clk 0:01:21.5]}
26... exd3 {[%clk 0:00:36.9]} 27. Qxd3 {[%clk 0:01:18.9]} 27... Bb5 {[%clk
0:00:29.2]} 28. Qb3 {[%clk 0:01:01]} 28... Rxe7 {[%clk 0:00:27]} 29. Rc1 {[%clk
0:01:00]} 29... Rxc1 {[%clk 0:00:19.9]} 30. Rxc1 {[%clk 0:01:00.9]} 30... Bxd4
{[%clk 0:00:20.4]} 31. Re1 {[%clk 0:00:30.3]} 31... Bc6 {[%clk 0:00:18.8]} 32.
Qb4 {[%clk 0:00:24]} 32... Rd7 {[%clk 0:00:19.1]} 33. Re2 {[%clk 0:00:17.9]}
33... Rd5 {[%clk 0:00:17.5]} 34. Kh2 {[%clk 0:00:16]} 34... Bxe5 {[%clk
0:00:16.4]} 35. f4 {[%clk 0:00:15.4]} 35... Rd1 {[%clk 0:00:15.4]} 36. Rg2
{[%clk 0:00:11.9]} 36... Bxg2 {[%clk 0:00:14]} 37. Kxg2 {[%clk 0:00:12.8]} 37...
Bf6 {[%clk 0:00:12.2]} 38. Qxb7 {[%clk 0:00:12.1]} 38... Rd2+ {[%clk 0:00:12.3]}
39. Kf3 {[%clk 0:00:12.5]} 39... a5 {[%clk 0:00:11.2]} 40. b4 {[%clk 0:00:12.2]}
40... Rd3+ {[%clk 0:00:09.7]} 41. Ke2 {[%clk 0:00:09.4]} 41... Rxa3 {[%clk
0:00:10.1]} 42. b5 {[%clk 0:00:09.9]} 42... Rb3 {[%clk 0:00:10]} 43. Qa6 {[%clk
0:00:09.4]} 43... Rb2+ {[%clk 0:00:04.5]} 44. Kd3 {[%clk 0:00:08.7]} 44... Rb3+
{[%clk 0:00:04.7]} 45. Kc2 {[%clk 0:00:08.9]} 45... Rb2+ {[%clk 0:00:04.6]} 46.
Kc1 {[%clk 0:00:09.6]} 46... Bd4 {[%clk 0:00:04]} 47. Qxa5 {[%clk 0:00:07.9]}
47... Rb3 {[%clk 0:00:04.2]} 48. Qa4 {[%clk 0:00:07.4]} 48... Be3+ {[%clk
0:00:04.5]} 49. Kc2 {[%clk 0:00:07.2]} 1-0

[Event "Early-Titled-Tuesday-Blitz-April-23-2024"]
[Site "Chess.com"]
[Date "2024.04.23"]
[Round "10"]
[White "Firouzja2003"]
[Black "MagnusCarlsen"]
[Result "1-0"]
[WhiteElo "3096"]
[BlackElo "3220"]
[TimeControl "180+1"]
[EndTime "10:01:24 PDT"]
[Termination "Firouzja2003 won on time"]

1. e4 {[%clk 0:03:00.9]} 1... Nc6 {[%clk 0:02:59.9]} 2. Nf3 {[%clk 0:02:59.6]}
2... d6 {[%clk 0:02:46.5]} 3. d4 {[%clk 0:02:59.6]} 3... Nf6 {[%clk 0:02:46.8]}
4. c3 {[%clk 0:02:47.6]} 4... e5 {[%clk 0:02:43]} 5. Bd3 {[%clk 0:02:29.4]} 5...
Bg4 {[%clk 0:02:38.4]} 6. d5 {[%clk 0:02:27.3]} 6... Nb8 {[%clk 0:02:34.2]} 7.
c4 {[%clk 0:02:27]} 7... Nbd7 {[%clk 0:02:34.2]} 8. Nc3 {[%clk 0:02:27.4]} 8...
g6 {[%clk 0:02:34.2]} 9. h3 {[%clk 0:02:22.2]} 9... Bxf3 {[%clk 0:02:34.6]} 10.
Qxf3 {[%clk 0:02:23]} 10... h5 {[%clk 0:02:35.4]} 11. O-O {[%clk 0:02:13.6]}
11... Bh6 {[%clk 0:02:35.2]} 12. Bxh6 {[%clk 0:02:11.6]} 12... Rxh6 {[%clk
0:02:36.1]} 13. Qe3 {[%clk 0:02:12]} 13... Rh8 {[%clk 0:02:35.2]} 14. f4 {[%clk
0:02:07.4]} 14... exf4 {[%clk 0:02:34.4]} 15. Rxf4 {[%clk 0:02:08.3]} 15... Ne5
{[%clk 0:02:33.2]} 16. Raf1 {[%clk 0:02:08.9]} 16... Nfd7 {[%clk 0:02:33.1]} 17.
Be2 {[%clk 0:02:06.5]} 17... a6 {[%clk 0:02:26.5]} 18. b4 {[%clk 0:01:38.6]}
18... Qe7 {[%clk 0:02:26.5]} 19. Qd4 {[%clk 0:01:36.4]} 19... Rg8 {[%clk
0:01:42.3]} 20. R4f2 {[%clk 0:01:25.4]} 20... Kf8 {[%clk 0:01:42.3]} 21. Nd1
{[%clk 0:01:20.8]} 21... a5 {[%clk 0:01:40.3]} 22. a3 {[%clk 0:01:09.3]} 22...
axb4 {[%clk 0:01:40.5]} 23. axb4 {[%clk 0:01:10.2]} 23... Ra4 {[%clk 0:01:36.5]}
24. Qb2 {[%clk 0:01:03.3]} 24... Ra8 {[%clk 0:01:19.4]} 25. Nc3 {[%clk
0:01:00.4]} 25... Re8 {[%clk 0:01:03.6]} 26. Nb5 {[%clk 0:00:57.8]} 26... c6
{[%clk 0:01:00.6]} 27. Nc7 {[%clk 0:00:51]} 27... Rc8 {[%clk 0:00:54.2]} 28.
Ne6+ {[%clk 0:00:49.7]} 28... Ke8 {[%clk 0:00:54.4]} 29. Nd4 {[%clk 0:00:50.1]}
29... c5 {[%clk 0:00:50.7]} 30. bxc5 {[%clk 0:00:37.7]} 30... Nxc5 {[%clk
0:00:49.6]} 31. Rf4 {[%clk 0:00:38.4]} 31... Kf8 {[%clk 0:00:47.5]} 32. Nb5
{[%clk 0:00:34.8]} 32... Rd8 {[%clk 0:00:44.5]} 33. Qd4 {[%clk 0:00:33.6]} 33...
Rd7 {[%clk 0:00:43.4]} 34. Rf6 {[%clk 0:00:33]} 34... b6 {[%clk 0:00:41.1]} 35.
Qe3 {[%clk 0:00:30.7]} 35... Kg7 {[%clk 0:00:38.6]} 36. R6f2 {[%clk 0:00:20.7]}
36... Re8 {[%clk 0:00:36.8]} 37. Nd4 {[%clk 0:00:20.5]} 37... Kh7 {[%clk
0:00:22.8]} 38. Nc6 {[%clk 0:00:10.6]} 38... Nxc6 {[%clk 0:00:18.5]} 39. dxc6
{[%clk 0:00:11.5]} 39... Rc7 {[%clk 0:00:19.3]} 40. Rxf7+ {[%clk 0:00:11.4]}
40... Qxf7 {[%clk 0:00:20.2]} 41. Rxf7+ {[%clk 0:00:11.7]} 41... Rxf7 {[%clk
0:00:21.1]} 42. Qd4 {[%clk 0:00:10.6]} 42... Rc7 {[%clk 0:00:19.6]} 43. Qxd6
{[%clk 0:00:10.2]} 43... Rec8 {[%clk 0:00:20.2]} 44. e5 {[%clk 0:00:08.4]} 44...
Rxc6 {[%clk 0:00:20.7]} 45. Qe7+ {[%clk 0:00:09]} 45... Kh6 {[%clk 0:00:21.2]}
46. h4 {[%clk 0:00:06.6]} 46... Re6 {[%clk 0:00:17.4]} 47. Qg5+ {[%clk
0:00:07.1]} 47... Kh7 {[%clk 0:00:11.2]} 48. Bf3 {[%clk 0:00:04.6]} 48... Rce8
{[%clk 0:00:11]} 49. Bd5 {[%clk 0:00:05.3]} 49... Rxe5 {[%clk 0:00:11.1]} 50.
Qf6 {[%clk 0:00:06]} 50... Rf5 {[%clk 0:00:07.7]} 51. Qxb6 {[%clk 0:00:05.8]}
51... Rc8 {[%clk 0:00:04.6]} 52. Qd6 {[%clk 0:00:04.8]} 52... Kh6 {[%clk
0:00:04.3]} 53. Qe7 {[%clk 0:00:05.1]} 53... Nd3 {[%clk 0:00:01.9]} 54. Qe3+
{[%clk 0:00:04.9]} 54... Nf4 {[%clk 0:00:01.9]} 55. g3 {[%clk 0:00:05.6]} 1-0

[Event "Early-Titled-Tuesday-Blitz-April-23-2024"]
[Site "Chess.com"]
[Date "2024.04.23"]
[Round "10"]
[White "Fandorine"]
[Black "SpeedofLight0"]
[Result "1/2-1/2"]
[WhiteElo "2927"]
[BlackElo "3074"]
[TimeControl "180+1"]
[EndTime "10:01:24 PDT"]
[Termination "Game drawn by repetition"]

1. e4 {[%clk 0:03:00.9]} 1... Nc6 {[%clk 0:02:58.5]} 2. Nf3 {[%clk 0:03:00.7]}
2... d6 {[%clk 0:02:58.6]} 3. Bb5 {[%clk 0:02:58.4]} 3... Nf6 {[%clk 0:02:57.8]}
4. Nc3 {[%clk 0:02:58.3]} 4... Bd7 {[%clk 0:02:58.1]} 5. d4 {[%clk 0:02:58.2]}
5... g6 {[%clk 0:02:58.1]} 6. O-O {[%clk 0:02:52.1]} 6... Bg7 {[%clk 0:02:58]}
7. h3 {[%clk 0:02:51.8]} 7... a6 {[%clk 0:02:58.2]} 8. Bxc6 {[%clk 0:02:48.7]}
8... Bxc6 {[%clk 0:02:59.1]} 9. d5 {[%clk 0:02:48.2]} 9... Bd7 {[%clk
0:02:59.1]} 10. e5 {[%clk 0:02:46.9]} 10... dxe5 {[%clk 0:02:54.6]} 11. Nxe5
{[%clk 0:02:47.8]} 11... O-O {[%clk 0:02:54.3]} 12. Re1 {[%clk 0:02:48.5]} 12...
Bf5 {[%clk 0:02:53.5]} 13. Bg5 {[%clk 0:02:47.8]} 13... h6 {[%clk 0:02:50.2]}
14. Bh4 {[%clk 0:02:46.9]} 14... g5 {[%clk 0:02:43]} 15. Bg3 {[%clk 0:02:46.8]}
15... e6 {[%clk 0:02:42.8]} 16. dxe6 {[%clk 0:02:40.9]} 16... Bxe6 {[%clk
0:02:43.7]} 17. Qf3 {[%clk 0:02:40.1]} 17... c6 {[%clk 0:02:40.3]} 18. Rad1
{[%clk 0:02:40.7]} 18... Qb6 {[%clk 0:02:36.5]} 19. Na4 {[%clk 0:02:33.3]} 19...
Qa5 {[%clk 0:02:29.1]} 20. b3 {[%clk 0:02:32.8]} 20... Rad8 {[%clk 0:02:16.1]}
21. c4 {[%clk 0:02:24.6]} 21... Rfe8 {[%clk 0:02:13.9]} 22. Nd3 {[%clk
0:01:51.6]} 22... Bxc4 {[%clk 0:02:07.3]} 23. Rxe8+ {[%clk 0:01:45.3]} 23...
Nxe8 {[%clk 0:02:02.9]} 24. Ndc5 {[%clk 0:01:43.1]} 24... Bd5 {[%clk 0:01:50.9]}
25. Qe2 {[%clk 0:01:22.9]} 25... Qb4 {[%clk 0:01:05.6]} 26. Qe7 {[%clk
0:01:19.7]} 26... Ra8 {[%clk 0:00:56.3]} 27. Qxb7 {[%clk 0:01:10.9]} 27... Qxb7
{[%clk 0:00:55.7]} 28. Nxb7 {[%clk 0:01:11.8]} 28... f5 {[%clk 0:00:55.9]} 29.
f3 {[%clk 0:01:12]} 29... f4 {[%clk 0:00:50.7]} 30. Bf2 {[%clk 0:01:02.9]} 30...
Nc7 {[%clk 0:00:47]} 31. Nbc5 {[%clk 0:00:54.1]} 31... a5 {[%clk 0:00:43.2]} 32.
Bd4 {[%clk 0:00:49.9]} 32... Bf8 {[%clk 0:00:34.4]} 33. Nd7 {[%clk 0:00:35]}
33... Be7 {[%clk 0:00:26.4]} 34. Nf6+ {[%clk 0:00:28.4]} 34... Kf7 {[%clk
0:00:26.2]} 35. Ng4 {[%clk 0:00:26.5]} 35... Bf8 {[%clk 0:00:15.6]} 36. Ne5+
{[%clk 0:00:23.5]} 36... Kg8 {[%clk 0:00:14.7]} 37. Bf2 {[%clk 0:00:19.6]} 37...
Re8 {[%clk 0:00:14.8]} 38. Bd4 {[%clk 0:00:08.8]} 38... Nb5 {[%clk 0:00:14]} 39.
Ba1 {[%clk 0:00:09]} 39... Bg7 {[%clk 0:00:11.1]} 40. Ng4 {[%clk 0:00:09.3]}
40... Re2 {[%clk 0:00:09.9]} 41. Bxg7 {[%clk 0:00:05.5]} 41... Kxg7 {[%clk
0:00:10.8]} 42. Nb6 {[%clk 0:00:06.2]} 42... Nc7 {[%clk 0:00:03.4]} 43. Rc1
{[%clk 0:00:05.7]} 43... Rxa2 {[%clk 0:00:02.9]} 44. Nxd5 {[%clk 0:00:05.9]}
44... Nxd5 {[%clk 0:00:03.8]} 45. Rxc6 {[%clk 0:00:06.2]} 45... h5 {[%clk
0:00:04.5]} 46. Ne5 {[%clk 0:00:06.3]} 46... Ne3 {[%clk 0:00:05]} 47. Rg6+
{[%clk 0:00:04.7]} 47... Kh7 {[%clk 0:00:05.5]} 48. Rxg5 {[%clk 0:00:04.7]}
48... Ra1+ {[%clk 0:00:05.8]} 49. Kf2 {[%clk 0:00:04.7]} 49... Ra2+ {[%clk
0:00:05.8]} 50. Kg1 {[%clk 0:00:05]} 50... h4 {[%clk 0:00:04.9]} 51. Nd3 {[%clk
0:00:03.6]} 51... Ra1+ {[%clk 0:00:04.5]} 52. Kf2 {[%clk 0:00:03.6]} 52... Ra2+
{[%clk 0:00:04.5]} 53. Kg1 {[%clk 0:00:04.1]} 53... Ra1+ {[%clk 0:00:03.4]} 54.
Kf2 {[%clk 0:00:04.6]} 54... Ra2+ {[%clk 0:00:02.3]} 55. Kg1 {[%clk 0:00:05]}
1/2-1/2

[Event "Early-Titled-Tuesday-Blitz-April-23-2024"]
[Site "Chess.com"]
[Date "2024.04.23"]
[Round "10"]
[White "SlavenPastar"]
[Black "Lady_Nika"]
[Result "0-1"]
[WhiteElo "2619"]
[BlackElo "2493"]
[TimeControl "180+1"]
[EndTime "10:01:26 PDT"]
[Termination "Lady_Nika won by resignation"]

1. Nf3 {[%clk 0:03:00.9]} 1... d5 {[%clk 0:02:59.8]} 2. g3 {[%clk 0:03:01.4]}
2... Nf6 {[%clk 0:02:59.5]} 3. Bg2 {[%clk 0:03:02]} 3... g6 {[%clk 0:03:00.4]}
4. b3 {[%clk 0:03:00.5]} 4... c6 {[%clk 0:03:00.8]} 5. Bb2 {[%clk 0:03:01]} 5...
Bg7 {[%clk 0:03:01.7]} 6. O-O {[%clk 0:03:00.8]} 6... O-O {[%clk 0:03:01.8]} 7.
c4 {[%clk 0:03:01.5]} 7... Na6 {[%clk 0:03:00.8]} 8. d3 {[%clk 0:03:01.5]} 8...
Nc7 {[%clk 0:03:01.1]} 9. Nbd2 {[%clk 0:03:02.1]} 9... Re8 {[%clk 0:03:01.5]}
10. b4 {[%clk 0:02:59.8]} 10... Nh5 {[%clk 0:03:01]} 11. Bxg7 {[%clk 0:02:59.2]}
11... Nxg7 {[%clk 0:03:01.9]} 12. a4 {[%clk 0:02:56.9]} 12... a6 {[%clk
0:03:01.4]} 13. Qb3 {[%clk 0:02:55.2]} 13... e5 {[%clk 0:02:58.7]} 14. b5 {[%clk
0:02:49.4]} 14... axb5 {[%clk 0:02:56.9]} 15. axb5 {[%clk 0:02:50.3]} 15... Rxa1
{[%clk 0:02:56.7]} 16. Rxa1 {[%clk 0:02:49.9]} 16... e4 {[%clk 0:02:57]} 17. b6
{[%clk 0:02:26.2]} 17... Na6 {[%clk 0:02:50.1]} 18. Ne1 {[%clk 0:01:58.9]} 18...
e3 {[%clk 0:02:40.1]} 19. fxe3 {[%clk 0:01:47.7]} 19... Rxe3 {[%clk 0:02:41]}
20. Bf3 {[%clk 0:01:22]} 20... d4 {[%clk 0:02:30]} 21. Rxa6 {[%clk 0:01:15.6]}
21... bxa6 {[%clk 0:02:28.1]} 22. b7 {[%clk 0:01:16]} 22... Bxb7 {[%clk
0:02:28.4]} 23. Qxb7 {[%clk 0:01:16.2]} 23... Qa5 {[%clk 0:02:28.6]} 24. Qb2
{[%clk 0:01:03.4]} 24... c5 {[%clk 0:02:14.3]} 25. Kf2 {[%clk 0:01:01.3]} 25...
f5 {[%clk 0:02:03.2]} 26. Bd5+ {[%clk 0:00:51]} 26... Kh8 {[%clk 0:02:03]} 27.
Ne4 {[%clk 0:00:41.2]} 27... Qc7 {[%clk 0:01:33.3]} 28. Nxc5 {[%clk 0:00:36.9]}
28... Qxc5 {[%clk 0:01:30.5]} 29. Nf3 {[%clk 0:00:34.2]} 29... Re8 {[%clk
0:01:20.3]} 30. Kg2 {[%clk 0:00:27.3]} 30... a5 {[%clk 0:01:10.2]} 31. Nxd4
{[%clk 0:00:25.9]} 31... Qd6 {[%clk 0:00:48.2]} 32. e4 {[%clk 0:00:08.1]} 32...
f4 {[%clk 0:00:39.8]} 33. gxf4 {[%clk 0:00:05.1]} 33... Qxf4 {[%clk 0:00:39.5]}
34. Ne6 {[%clk 0:00:05]} 34... Qg4+ {[%clk 0:00:39.5]} 35. Kf2 {[%clk
0:00:05.1]} 35... Rxe6 {[%clk 0:00:38.2]} 36. Bxe6 {[%clk 0:00:05.5]} 36... Qxe6
{[%clk 0:00:38.3]} 37. Qb8+ {[%clk 0:00:05.8]} 37... Ne8 {[%clk 0:00:38.3]} 38.
Qa8 {[%clk 0:00:04.1]} 38... Qe5 {[%clk 0:00:36.9]} 39. Ke3 {[%clk 0:00:04.5]}
39... Kg8 {[%clk 0:00:27.4]} 40. d4 {[%clk 0:00:04.9]} 40... Qg5+ {[%clk
0:00:27.3]} 41. Kd3 {[%clk 0:00:05.6]} 41... Kf8 {[%clk 0:00:27.5]} 42. Qd5
{[%clk 0:00:04.3]} 42... Qxd5 {[%clk 0:00:17.6]} 43. exd5 {[%clk 0:00:05.2]}
43... Ke7 {[%clk 0:00:17.9]} 44. c5 {[%clk 0:00:05.7]} 44... Nf6 {[%clk
0:00:17.9]} 45. Kc4 {[%clk 0:00:05.8]} 45... Kd7 {[%clk 0:00:18.2]} 46. d6
{[%clk 0:00:05.3]} 46... Kc6 {[%clk 0:00:18.6]} 47. d5+ {[%clk 0:00:05.6]} 47...
Nxd5 {[%clk 0:00:18]} 48. d7 {[%clk 0:00:06]} 48... Ne3+ {[%clk 0:00:17.3]} 49.
Kd4 {[%clk 0:00:06.3]} 49... Kxd7 {[%clk 0:00:17.7]} 50. Kxe3 {[%clk 0:00:06.5]}
50... Kc6 {[%clk 0:00:18.6]} 51. Kd4 {[%clk 0:00:07.2]} 51... a4 {[%clk
0:00:19.1]} 52. Kc4 {[%clk 0:00:07.7]} 52... a3 {[%clk 0:00:19.3]} 53. Kb3
{[%clk 0:00:07.6]} 53... Kxc5 {[%clk 0:00:19.8]} 54. Kxa3 {[%clk 0:00:08.3]}
54... Kd4 {[%clk 0:00:20.7]} 55. Kb3 {[%clk 0:00:08.7]} 55... Ke3 {[%clk
0:00:21]} 56. Kc3 {[%clk 0:00:09.2]} 56... g5 {[%clk 0:00:20.4]} 0-1